[Event "Hungarian Youth-ch U12 2022"]
[Site "Eger"]
[Date "2022.07.26"]
[Round "4.3"]
[White "Kovacs, Kristof"]
[Black "Karacsonyi, Bank"]
[Result "1-0"]
[ECO "A46"]
[WhiteElo "1812"]
[BlackElo "1791"]
[Annotator "NA RC COMBH"]
[PlyCount "77"]
[EventDate "2022.07.21"]
[EventType "tourn"]
[EventCountry "HUN"]
[SourceTitle "playchess.com"]
[Source "ChessBase"]
[SourceQuality "1"]
[TimeControl "40/5400+30:1800+30"]

1. d4 {[%emt 0:00:33]} Nf6 {[%emt 0:00:33]} 2. Nf3 {[%emt 0:00:12]} e6 {[%emt 0:00:05]} 3. g3 {[%emt 0:00:18]} b5 {[%emt 0:00:12]} 4. Bg2 {[%emt 0:00:28]} Bb7 {[%emt 0:00:06]} 5. O-O {[%emt 0:00:41]} c5 {[%emt 0:00:07]} 6. c3 {[%emt 0:01:18]} Be7 {[%emt 0:00:06]} 7. b3 {[%emt 0:00:42]} O-O {[%emt 0:02:14]} 8. Bb2 {[%emt 0:03:09]} d6 {[%emt 0:07:16]} 9. Nbd2 {[%emt 0:03:14]} cxd4 {[%emt 0:03:40]} 10. Nxd4 {[%emt 0:01:57]} Qb6 {[%emt 0:02:28]} 11. a4 {[%emt 0:06:08]} bxa4 {[%emt 0:02:50]} 12. Nc4 {[%emt 0:01:24]} Qc7 {[%emt 0:01:41]} 13. Rxa4 {[%emt 0:03:17]} Bxg2 {[%emt 0:01:00]} 14. Kxg2 {[%emt 0:01:28]} Qb7+ {[%emt 0:02:39]} 15. Nf3 {[%emt 0:04:50]} d5 {[%emt 0:02:03]} (15... Ne4 $11) 16. Nce5 {[%emt 0:01:54]} Nc6 {[%emt 0:01:23]} (16... Ne4 $15) 17. Nxc6 {[%emt 0:01:07]} Qxc6 {[%emt 0:00:05]} 18. Qc2 {[%emt 0:00:41]} Rfc8 {[%emt 0:05:08]} 19. Rfa1 {[%emt 0:03:51]} Bc5 {[%emt 0:04:04]} 20. e3 {[%emt 0:01:52]} ({Better is} 20. c4 $1 $14) 20... Rab8 {[%emt 0:02:23]} 21. c4 $1 {[%emt 0:04:59]} Nd7 {[%emt 0:01:30]} 22. Qc3 {[%emt 0:02:35]} e5 {[%emt 0:15:35]} 23. b4 {[%emt 0:08:54]} Be7 {[%emt 0:05:35]} 24. c5 {[%emt 0:01:21]} d4 {[%emt 0:03:07]} 25. Qd2 {[%emt 0:01:49]} g5 {[%emt 0:01:39]} 26. exd4 {[%emt 0:05:29]} ({Reject} 26. Ra6 Qe4 27. h3 (27. Rxa7 g4 $15) 27... h5 28. exd4 (28. Rxa7 Rd8 $15) 28... g4 $15) 26... exd4 {[%emt 0:02:32]} 27. Ra6 {[%emt 0:00:34]} Qd5 {[%emt 0:03:30]} 28. Qxd4 {[%emt 0:00:22]} Qxd4 {[%emt 0:00:08]} 29. Bxd4 {[%emt 0:00:08]} g4 {[%emt 0:01:57]} 30. Ne5 {[%emt 0:02:43]} Nxe5 {[%emt 0:03:06]} 31. Bxe5 {[%emt 0:00:04]} Rxb4 {[%emt 0:00:08]} 32. Rxa7 {[%emt 0:01:05]} Bxc5 {[%emt 0:00:30]} 33. Rc1 {[%emt 0:01:43]} Rb5 {[%emt 0:02:21]} 34. Ra4 {[%emt 0:00:35]} Re8 {[%emt 0:01:23]} 35. Rxg4+ {[%emt 0:00:21]} Kf8 {[%emt 0:00:22]} 36. Bg7+ {[%emt 0:00:32]} Ke7 {[%emt 0:00:15]} 37. Re4+ {[%emt 0:00:07]} Kd7 {[%emt 0:02:05]} 38. Rd1+ {[%emt 0:00:05]} Bd6 $18 {[%emt 0:00:03]} 39. Rxd6+ {[%emt 0:00:21]} 1-0

[Event "Hungarian Youth-ch U12 2022"]
[Site "Eger"]
[Date "2022.07.26"]
[Round "4.4"]
[White "Onodi, Miklos"]
[Black "Bod, Marton"]
[Result "1-0"]
[ECO "A49"]
[WhiteElo "1901"]
[BlackElo "1758"]
[Annotator "TA"]
[PlyCount "81"]
[EventDate "2022.07.21"]
[EventType "tourn"]
[EventCountry "HUN"]
[SourceTitle "playchess.com"]
[Source "ChessBase"]
[SourceQuality "1"]
[TimeControl "40/5400+30:1800+30"]

{[%evp 17,81,34,42,-19,34,28,31,0,20,19,11,8,36,34,42,6,33,16,70,61,62,33,65,52,67,61,64,70,144,146,210,218,297,188,192,182,262,240,230,222,238,225,501,485,443,361,350,328,372,365,529,528,537,539,440,355,528,543,528,528,528,474,449,438,423,412]} 1. d4 {[%emt 0:00:34]} Nf6 {[%emt 0:00:44]} 2. Nf3 {[%emt 0:00:06]} g6 {[%emt 0:00:49]} 3. g3 {[%emt 0:00:06]} Bg7 {[%emt 0:00:39]} 4. Bg2 {[%emt 0:00:09]} O-O {[%emt 0:02:12]} 5. O-O {[%emt 0:00:12]} d6 {[%emt 0:01:05]} 6. b3 {[%emt 0:00:11]} c5 {[%emt 0:01:52]} 7. Bb2 {[%emt 0:00:11]} Nbd7 {[%emt 0:00:57]} 8. c4 {[%emt 0:00:45]} Rb8 {[%emt 0:02:44]} 9. Nc3 {[%emt 0:01:34]} a6 {[%emt 0:01:29]} 10. Qd2 {[%emt 0:09:49] E65: King's Indian: Fianchetto: 6...c5 7 0-0 without d5 by White.} ({White should try} 10. a4 $14) 10... b6 {[%emt 0:02:45]} (10... b5 $11) 11. Rac1 $14 {[%emt 0:18:14]} Bb7 {[%emt 0:03:45][%cal Ob6b5] [#]} 12. e3 $146 {[%emt 0:09:43] White is slightly better.} ({Predecessor:} 12. Rfd1 Qc7 13. Nd5 Qd8 14. Ng5 h6 15. Nh3 Nxd5 16. Bxd5 Bxd5 17. cxd5 Nf6 18. dxc5 bxc5 {½-½ (77) Steczek,M (2385)-Lagunow,R (2267) Germany 2016}) 12... Ne4 {[%emt 0:04:48]} (12... b5 $5 {[%cal Rb5c4]}) 13. Nxe4 {[%emt 0:02:15]} Bxe4 {[%emt 0:00:10]} 14. Rfd1 {[%emt 0:01:38]} Nf6 {[%emt 0:09:14]} (14... Qc7) 15. Qe2 {[%emt 0:05:28]} Qc8 {[%emt 0:05:29]} 16. Bf1 {[%emt 0:12:30]} Rd8 {[%emt 0:06:42]} (16... Qg4 17. Bg2 cxd4) (16... Qg4 $5 {[%cal Re4f3]} 17. Bg2 Rfe8 $11) 17. d5 {[%emt 0:04:16]} Qb7 {[%emt 0:04:46]} (17... Qg4 $11 18. Ne1 Qxe2 19. Bxe2 g5) 18. Nd2 {[%emt 0:03:58] aiming for Bxf6.} Bf5 {[%emt 0:02:46]} 19. Ba1 {[%emt 0:05:22]} Qd7 {[%emt 0:01:16]} (19... e5) 20. e4 {[%emt 0:02:15][%cal Be3e4,Be4e5][%mdl 32]} Bh3 {[%emt 0:00:57]} 21. e5 {[%emt 0:00:21]} Bxf1 {[%emt 0:00:33]} 22. Rxf1 {[%emt 0:00:08]} Nh5 {[%emt 0:03:17] White leaves nothing to chance now.} (22... dxe5 $14 23. Bxe5 Rb7) 23. f4 $16 {[%emt 0:00:45]} Bh6 {[%emt 0:00:44]} (23... f5 $16 {is a better defense.} 24. Nf3 b5) 24. Ne4 {[%emt 0:01:11]} Re8 {[%emt 0:08:18]} 25. Qf3 {[%emt 0:02:02] Strongly threatening g4.} dxe5 {[%emt 0:00:35]} 26. Bxe5 {[%emt 0:00:20] Hoping for g4.} Rb7 {[%emt 0:00:37] [#]} (26... Rbd8 {might work better.} 27. Rcd1 Bg7) 27. g4 $1 $18 {[%emt 0:00:41]} f6 {[%emt 0:00:43]} 28. gxh5 {[%emt 0:01:08]} fxe5 {[%emt 0:00:08]} 29. hxg6 {[%emt 0:00:41]} ({Not} 29. fxe5 Rf8 30. e6 Qe8 $16) 29... hxg6 {[%emt 0:01:02] [#]} (29... Qf5 30. gxh7+ Kh8) (29... Qf5 30. gxh7+ Kh8) 30. fxe5 $1 {[%emt 0:06:04]} Qf5 {[%emt 0:01:53] Inhibits Qf7+. Threatens to win with ...Qxf3.} (30... Bxc1 {gets mated.} 31. Qf7+ Kh8 32. e6 (32. Rxc1 Qg4+ 33. Ng3 Rbb8 $15) 32... Be3+ 33. Kh1) 31. Rc3 {[%emt 0:03:08][%cal Bc1c3,Bc3g3,Bg3g5,Bg5f5,Bf5f7][%mdl 32]} Rf8 {[%emt 0:01:28]} 32. Qxf5 {[%emt 0:00:36]} gxf5 {[%emt 0:00:50]} 33. Rg3+ {[%emt 0:00:50]} Kh7 {[%emt 0:00:14]} (33... Bg7 {keeps fighting.}) 34. Ng5+ {[%emt 0:00:16]} Bxg5 {[%emt 0:00:38]} 35. Rxg5 {[%emt 0:00:06][%mdl 4096] Endgame Rf3 would kill now. KRR-KRR} e6 {[%emt 0:00:41]} 36. dxe6 {[%emt 0:00:19]} Re7 {[%emt 0:00:08]} (36... Re8 $142 37. Rfxf5 Rxe6) 37. Rfxf5 {[%emt 0:00:30] White is clearly winning.} Rxf5 {[%emt 0:00:15]} 38. Rxf5 {[%emt 0:00:05] Rf7+ is the strong threat.} Rxe6 {[%emt 0:00:07]} 39. Rf7+ {[%emt 0:00:22]} Kg8 {[%emt 0:00:25]} 40. Rf6 {[%emt 0:00:00]} Rxe5 {[%emt 0:00:00]} 41. Rxb6 {[%emt 0:00:13] Weighted Error Value: White=0.16 (very precise) /Black=0.39} 1-0

[Event "Hungarian Youth-ch U12 2022"]
[Site "Eger"]
[Date "2022.07.26"]
[Round "4.5"]
[White "Juhasz, Edmond"]
[Black "Feher, Botond"]
[Result "0-1"]
[ECO "B27"]
[WhiteElo "1510"]
[BlackElo "1747"]
[Annotator "NA RC COMBH"]
[PlyCount "108"]
[EventDate "2022.07.21"]
[EventType "tourn"]
[EventCountry "HUN"]
[SourceTitle "playchess.com"]
[Source "ChessBase"]
[SourceQuality "1"]
[TimeControl "40/5400+30:1800+30"]

1. e4 {[%emt 0:00:33]} c5 {[%emt 0:00:42]} 2. Nf3 {[%emt 0:00:14]} g6 {[%emt 0:00:08]} 3. Nc3 {[%emt 0:01:17]} Bg7 {[%emt 0:00:10]} 4. Bc4 {[%emt 0:01:14]} Nc6 {[%emt 0:01:00]} 5. d3 {[%emt 0:01:22]} e6 {[%emt 0:00:52]} 6. O-O {[%emt 0:02:35]} Nge7 {[%emt 0:01:34]} 7. Re1 {[%emt 0:01:48]} O-O {[%emt 0:00:37]} 8. Bf4 {[%emt 0:01:05]} Nd4 {[%emt 0:07:18]} 9. Bd6 {[%emt 0:05:59]} b6 {[%emt 0:08:27]} 10. e5 {[%emt 0:07:30]} Bb7 {[%emt 0:10:12]} 11. Nxd4 {[%emt 0:03:01]} cxd4 {[%emt 0:00:27]} 12. Nb5 {[%emt 0:00:51]} f6 {[%emt 0:02:54]} 13. f4 {[%emt 0:13:36]} fxe5 {[%emt 0:04:36]} 14. fxe5 {[%emt 0:00:09]} Nf5 {[%emt 0:03:51]} 15. Bxf8 {[%emt 0:19:12]} Qg5 {[%emt 0:04:31]} 16. Re4 {[%emt 0:18:19]} Ne3 {[%emt 0:07:20]} 17. Qe2 {[%emt 0:01:39]} Bxe4 {[%emt 0:00:47]} 18. dxe4 {[%emt 0:00:29]} Rxf8 {[%emt 0:00:17]} 19. Nxd4 {[%emt 0:01:24]} Nxc4 {[%emt 0:00:12]} 20. Qxc4 Bxe5 21. Qd3 {[%emt 0:05:18]} Qf4 {[%emt 0:05:35]} 22. Nf3 {[%emt 0:02:13]} Bxb2 {[%emt 0:00:07]} 23. Rb1 {[%emt 0:00:12]} Bg7 {[%emt 0:00:05]} 24. Qxd7 {[%emt 0:00:32]} Qxe4 {[%emt 0:00:47]} 25. Re1 {[%emt 0:03:45]} Qxc2 {[%emt 0:01:10]} 26. Qxe6+ {[%emt 0:00:05]} Kh8 {[%emt 0:00:16]} 27. Qd5 {[%emt 0:03:45]} Qc5+ {[%emt 0:01:23]} 28. Qxc5 {[%emt 0:00:04]} bxc5 {[%emt 0:00:04]} 29. Re7 {[%emt 0:00:10]} c4 30. Rc7 {[%emt 0:01:53]} c3 {[%emt 0:00:45]} 31. Kf1 {[%emt 0:00:34]} Rd8 {[%emt 0:03:11]} 32. Ke2 {[%emt 0:00:27]} Kg8 {[%emt 0:01:44]} 33. h3 {[%emt 0:01:51]} a6 {[%emt 0:00:07]} 34. a3 {[%emt 0:01:15]} h6 {[%emt 0:02:05]} 35. g3 {[%emt 0:00:38]} Rb8 {[%emt 0:00:52]} 36. Ne1 {[%emt 0:01:53]} Re8+ {[%emt 0:00:28]} 37. Kd1 {[%emt 0:00:42]} Re3 {[%emt 0:00:12]} 38. Rc8+ {[%emt 0:00:13]} Kh7 {[%emt 0:00:04]} 39. Rc6 {[%emt 0:00:39]} Rxg3 {[%emt 0:00:28]} 40. Rxa6 {[%emt 0:00:09]} Rxh3 {[%emt 0:00:04]} 41. a4 {[%emt 0:00:14]} Rh2 {[%emt 0:00:55]} 42. Ra7 {[%emt 0:01:43]} g5 {[%emt 0:00:42]} 43. Nf3 {[%emt 0:01:11]} Rf2 {[%emt 0:01:21]} 44. Ne5 {[%emt 0:00:31]} Kg8 {[%emt 0:00:36]} 45. Ng4 {[%emt 0:00:47]} Rf4 {[%emt 0:00:49]} 46. Ra8+ {[%emt 0:00:22]} Rf8 {[%emt 0:00:37]} 47. Ra6 {[%emt 0:00:10]} h5 {[%emt 0:00:26]} 48. Ne3 {[%emt 0:00:15]} Kh7 {[%emt 0:02:37]} 49. Ra5 {[%emt 0:01:52]} Kg6 {[%emt 0:00:13]} 50. Ra6+ {[%emt 0:01:55]} Rf6 {[%emt 0:00:16]} 51. Ra5 {[%emt 0:00:29]} g4 {[%emt 0:00:23]} 52. Ke2 {[%emt 0:00:35]} Bh6 {[%emt 0:00:41]} 53. Nc2 {[%emt 0:01:10]} g3 {[%emt 0:00:08]} 54. Rd5 {[%emt 0:00:25]} Rf2+ {[%emt 0:00:22]} 0-1

[Event "Hungarian Youth-ch U12 2022"]
[Site "Eger"]
[Date "2022.07.26"]
[Round "4.6"]
[White "Balogh, Gerda"]
[Black "Torok, Rita"]
[Result "0-1"]
[ECO "C55"]
[WhiteElo "1531"]
[BlackElo "1275"]
[Annotator "NA RC COMBH"]
[PlyCount "100"]
[EventDate "2022.07.21"]
[EventType "tourn"]
[EventCountry "HUN"]
[SourceTitle "playchess.com"]
[Source "ChessBase"]
[SourceQuality "1"]
[TimeControl "40/5400+30:1800+30"]

1. e4 {[%emt 0:00:32]} e5 {[%emt 0:00:46]} 2. Nf3 {[%emt 0:00:08]} Nc6 {[%emt 0:00:12]} 3. Bc4 {[%emt 0:00:18]} Nf6 {[%emt 0:00:35]} 4. d3 {[%emt 0:00:12]} d6 {[%emt 0:02:47]} 5. O-O {[%emt 0:02:14]} Be7 {[%emt 0:04:00]} 6. c3 {[%emt 0:06:19]} O-O {[%emt 0:12:09]} 7. Re1 Bd7 8. d4 {[%emt 0:02:33]} exd4 {[%emt 0:04:29]} 9. cxd4 {[%emt 0:00:14]} Bg4 {[%emt 0:08:37]} 10. d5 {[%emt 0:09:11]} Ne5 {[%emt 0:04:36]} 11. Nbd2 {[%emt 0:00:41]} Nxc4 {[%emt 0:04:54]} 12. Nxc4 {[%emt 0:00:21]} Nd7 {[%emt 0:07:38]} 13. Ne3 {[%emt 0:04:08]} Bxf3 {[%emt 0:03:51]} 14. Qxf3 Ne5 {[%emt 0:03:01]} 15. Qg3 {[%emt 0:01:50]} Bh4 {[%emt 0:05:59]} 16. Qf3 {[%emt 0:00:41]} Nxf3+ {[%emt 0:00:12]} 17. gxf3 {[%emt 0:00:19]} Bg5 {[%emt 0:02:27]} 18. Kh1 {[%emt 0:00:19]} Qf6 {[%emt 0:01:04]} 19. Kg2 {[%emt 0:00:24]} Qg6 {[%emt 0:00:59]} 20. Kh1 {[%emt 0:00:19]} Bxe3 {[%emt 0:00:32]} 21. Bxe3 {[%emt 0:00:25]} f5 {[%emt 0:00:51]} 22. Bd4 {[%emt 0:00:31]} Rf7 {[%emt 0:02:38]} 23. Rg1 {[%emt 0:00:26]} Qh5 {[%emt 0:00:56]} 24. Rg3 {[%emt 0:00:46]} fxe4 {[%emt 0:01:04]} 25. fxe4 {[%emt 0:00:25]} c5 {[%emt 0:01:04]} 26. dxc6 {[%emt 0:01:15]} bxc6 {[%emt 0:00:49]} 27. Rag1 {[%emt 0:00:35]} g6 {[%emt 0:01:00]} 28. Bc3 {[%emt 0:03:55]} Rxf2 {[%emt 0:01:04]} 29. R3g2 {[%emt 0:00:28]} Rxg2 {[%emt 0:00:30]} 30. Rxg2 {[%emt 0:00:02]} Rf8 {[%emt 0:01:48]} 31. h3 {[%emt 0:00:12]} Rf1+ {[%emt 0:00:11]} 32. Kh2 {[%emt 0:00:06]} Qf3 {[%emt 0:01:33]} 33. Bd4 {[%emt 0:01:02]} Qf4+ {[%emt 0:01:00]} 34. Rg3 {[%emt 0:00:25]} Qd2+ {[%emt 0:00:11]} 35. Rg2 {[%emt 0:00:24]} Qxd4 {[%emt 0:00:13]} 36. h4 {[%emt 0:00:19]} Qe5+ {[%emt 0:00:17]} 37. Kh3 {[%emt 0:00:25]} Rh1+ {[%emt 0:00:09]} 38. Kg4 {[%emt 0:00:12]} Qxe4+ {[%emt 0:00:23]} 39. Kg3 {[%emt 0:00:18]} Qxh4+ {[%emt 0:00:15]} 40. Kf3 {[%emt 0:00:00]} Rh3+ {[%emt 0:00:00]} 41. Ke2 {[%emt 0:00:31]} Rh2 {[%emt 0:00:51]} 42. Kf1 {[%emt 0:00:24]} Rxg2 {[%emt 0:00:07]} 43. Kxg2 {[%emt 0:00:20]} Kf7 {[%emt 0:00:27]} 44. Kf1 {[%emt 0:00:15]} Qh2 {[%emt 0:00:20]} 45. Ke1 {[%emt 0:00:14]} Kf6 {[%emt 0:00:09]} 46. Kd1 {[%emt 0:00:10]} Qxb2 {[%emt 0:00:09]} 47. Ke1 {[%emt 0:00:22]} Kf5 {[%emt 0:00:12]} 48. Kf1 {[%emt 0:00:11]} Kf4 {[%emt 0:00:11]} 49. Kg1 {[%emt 0:00:08]} Kf3 {[%emt 0:00:16]} 50. Kh1 {[%emt 0:00:18]} Qg2# {[%emt 0:00:07]} 0-1

[Event "Hungarian Youth-ch U12 2022"]
[Site "Eger"]
[Date "2022.07.26"]
[Round "4.7"]
[White "Balazs, Szabina Zoe"]
[Black "Hangyal, Dora"]
[Result "1-0"]
[ECO "C54"]
[WhiteElo "1437"]
[BlackElo "1244"]
[Annotator "NA RC COMBH"]
[PlyCount "79"]
[EventDate "2022.07.21"]
[EventType "tourn"]
[EventCountry "HUN"]
[SourceTitle "playchess.com"]
[Source "ChessBase"]
[SourceQuality "1"]
[TimeControl "40/5400+30:1800+30"]

1. e4 {[%emt 0:00:33]} e5 {[%emt 0:00:34]} 2. Nf3 {[%emt 0:00:15]} Nc6 {[%emt 0:00:05]} 3. Bc4 {[%emt 0:00:51]} Bc5 {[%emt 0:00:13]} 4. c3 {[%emt 0:00:42]} Nf6 {[%emt 0:01:12]} 5. d3 {[%emt 0:00:51]} h6 {[%emt 0:02:01]} 6. O-O {[%emt 0:01:48]} O-O {[%emt 0:00:08]} 7. h3 {[%emt 0:00:28]} d5 {[%emt 0:01:29]} 8. exd5 {[%emt 0:01:55]} Nxd5 {[%emt 0:02:13]} 9. Re1 {[%emt 0:02:43]} Nb6 {[%emt 0:02:39]} 10. Bb3 {[%emt 0:01:12]} Qf6 {[%emt 0:02:42]} 11. Nbd2 {[%emt 0:03:35]} Be7 {[%emt 0:02:30]} 12. Qe2 {[%emt 0:02:49]} Re8 {[%emt 0:02:13]} 13. a4 {[%emt 0:18:42]} Bf5 {[%emt 0:03:34]} 14. Ne4 {[%emt 0:01:24]} Qg6 {[%emt 0:03:20]} 15. Kh1 {[%emt 0:00:18]} Nd7 {[%emt 0:05:59]} 16. Bc2 {[%emt 0:03:03]} Nc5 {[%emt 0:05:44]} 17. Nxc5 {[%emt 0:01:47]} Bxc5 {[%emt 0:00:17]} 18. Nh4 {[%emt 0:00:25]} Qf6 {[%emt 0:00:35]} 19. Nxf5 {[%emt 0:00:12]} Qxf5 {[%emt 0:00:11]} 20. d4 {[%emt 0:00:07]} e4 {[%emt 0:05:05]} 21. dxc5 {[%emt 0:00:27]} Qxc5 {[%emt 0:03:15]} 22. Be3 {[%emt 0:01:45]} Qe5 {[%emt 0:00:56]} 23. Qg4 {[%emt 0:01:14]} f5 {[%emt 0:01:15]} 24. Qf4 {[%emt 0:01:47]} Qe7 {[%emt 0:02:12]} 25. Qxf5 {[%emt 0:01:00]} Qe5 26. Qxe5 {[%emt 0:01:35]} Rxe5 {[%emt 0:17:35]} 27. Bf4 {[%emt 0:00:16]} Rf5 {[%emt 0:00:34]} 28. Bg3 {[%emt 0:00:20]} Re8 {[%emt 0:02:08]} 29. Bxe4 {[%emt 0:00:34]} Rf6 {[%emt 0:00:22]} 30. Bd5+ {[%emt 0:00:17]} Kf8 {[%emt 0:00:50]} 31. Rxe8+ {[%emt 0:00:42]} Kxe8 {[%emt 0:00:13]} 32. Re1+ {[%emt 0:00:07]} Kd7 {[%emt 0:00:20]} 33. f3 {[%emt 0:00:57]} g5 {[%emt 0:01:16]} 34. b4 {[%emt 0:00:38]} h5 {[%emt 0:08:51]} 35. Rd1 {[%emt 0:02:39]} h4 {[%emt 0:02:42]} 36. Bh2 {[%emt 0:00:32]} Kc8 {[%emt 0:08:17]} 37. Be4 {[%emt 0:00:39]} a6 {[%emt 0:02:55]} 38. Rd5 {[%emt 0:00:14]} Rf8 {[%emt 0:04:13]} 39. Rxg5 {[%emt 0:00:46]} Re8 {[%emt 0:01:47]} 40. Rg7 {[%emt 0:00:00]} 1-0

[Event "Hungarian Youth-ch U12 2022"]
[Site "Eger"]
[Date "2022.07.26"]
[Round "4.8"]
[White "Brieber, Dorottya"]
[Black "Molnar, Dalma Reka"]
[Result "1/2-1/2"]
[ECO "B23"]
[WhiteElo "1242"]
[BlackElo "1521"]
[Annotator "NA RC COMBH"]
[PlyCount "56"]
[EventDate "2022.07.21"]
[EventType "tourn"]
[EventCountry "HUN"]
[SourceTitle "playchess.com"]
[Source "ChessBase"]
[SourceQuality "1"]
[TimeControl "40/5400+30:1800+30"]

1. e4 {[%emt 0:00:33]} c5 {[%emt 0:00:38]} 2. Nc3 {[%emt 0:00:09]} Nc6 {[%emt 0:00:10]} 3. f4 {[%emt 0:00:15]} g6 {[%emt 0:00:26]} 4. Nf3 {[%emt 0:00:17]} Bg7 {[%emt 0:00:31]} 5. Bc4 {[%emt 0:00:37]} e6 {[%emt 0:00:20]} 6. d3 {[%emt 0:02:16]} Nge7 {[%emt 0:01:02]} 7. O-O {[%emt 0:02:48]} O-O {[%emt 0:01:34]} 8. Qe1 {[%emt 0:01:55]} d5 {[%emt 0:01:28]} 9. Bb3 {[%emt 0:03:12]} dxe4 {[%emt 0:04:56]} 10. dxe4 {[%emt 0:01:12]} Nd4 {[%emt 0:14:34]} 11. Nd2 {[%emt 0:03:43]} b5 {[%emt 0:02:12]} 12. Nxb5 {[%emt 0:15:50]} Nxb5 {[%emt 0:00:32]} 13. c3 {[%emt 0:02:36]} Ba6 {[%emt 0:05:33]} 14. Bc4 {[%emt 0:01:40]} Nc7 {[%emt 0:00:15]} 15. Bxa6 {[%emt 0:00:23]} Nxa6 {[%emt 0:00:05]} 16. Nf3 {[%emt 0:01:55]} Rc8 {[%emt 0:04:53]} 17. Be3 {[%emt 0:02:58]} Qc7 {[%emt 0:02:46]} 18. Qh4 {[%emt 0:10:49]} Nc6 {[%emt 0:05:19]} 19. f5 {[%emt 0:02:12]} exf5 {[%emt 0:00:55]} 20. exf5 {[%emt 0:00:36]} f6 {[%emt 0:03:49]} 21. Qc4+ {[%emt 0:01:08]} Kh8 {[%emt 0:02:03]} 22. Qxa6 {[%emt 0:00:39]} Qb6 {[%emt 0:01:11]} 23. Qd3 {[%emt 0:01:39]} Rcd8 {[%emt 0:09:39]} 24. Qc2 {[%emt 0:03:13]} Rfe8 {[%emt 0:00:56]} 25. Bf2 {[%emt 0:02:33]} g5 {[%emt 0:01:19]} 26. b4 {[%emt 0:01:35]} Qa6 {[%emt 0:01:42]} 27. Rfe1 {[%emt 0:01:51]} cxb4 {[%emt 0:01:28]} 28. Re6 {[%emt 0:00:57]} Rxe6 {[%emt 0:05:35]} 1/2-1/2

[Event "Hungarian Youth-ch U12 2022"]
[Site "Eger"]
[Date "2022.07.26"]
[Round "4.9"]
[White "Kiss, Inez"]
[Black "Biro, Beata"]
[Result "1-0"]
[ECO "B43"]
[WhiteElo "1397"]
[BlackElo "1551"]
[Annotator "NA RC COMBH"]
[PlyCount "103"]
[EventDate "2022.07.21"]
[EventType "tourn"]
[EventCountry "HUN"]
[SourceTitle "playchess.com"]
[Source "ChessBase"]
[SourceQuality "1"]
[TimeControl "40/5400+30:1800+30"]

1. e4 {[%emt 0:00:31]} c5 {[%emt 0:00:45]} 2. Nf3 {[%emt 0:00:03]} e6 {[%emt 0:00:15]} 3. d4 {[%emt 0:00:02]} cxd4 {[%emt 0:00:19]} 4. Nxd4 {[%emt 0:00:03]} a6 {[%emt 0:00:25]} 5. Nc3 {[%emt 0:00:06]} b5 {[%emt 0:00:21]} 6. Bd3 {[%emt 0:00:15]} Qb6 {[%emt 0:00:39]} 7. Nf3 {[%emt 0:00:09]} Qc7 {[%emt 0:00:12]} 8. O-O {[%emt 0:00:35]} d6 {[%emt 0:00:16]} 9. Re1 {[%emt 0:02:16]} Nd7 {[%emt 0:00:38]} 10. Be3 {[%emt 0:03:57]} Ngf6 {[%emt 0:01:18]} 11. h3 {[%emt 0:00:50]} Bb7 {[%emt 0:00:53]} 12. Bg5 {[%emt 0:09:52]} Be7 {[%emt 0:02:21]} 13. Nd2 {[%emt 0:09:17]} h6 {[%emt 0:02:07]} 14. Bf4 {[%emt 0:07:51]} O-O {[%emt 0:02:59]} 15. f3 {[%emt 0:08:43]} Rfd8 {[%emt 0:04:19]} 16. a4 {[%emt 0:09:48]} b4 {[%emt 0:00:40]} 17. Ne2 {[%emt 0:03:35]} e5 {[%emt 0:02:52]} 18. Bh2 {[%emt 0:00:56]} d5 {[%emt 0:01:58]} 19. exd5 {[%emt 0:02:53]} Nxd5 {[%emt 0:00:30]} 20. Nc4 {[%emt 0:02:40]} f6 {[%emt 0:03:56]} 21. Ng3 {[%emt 0:05:45]} N7b6 {[%emt 0:03:01]} 22. Nxb6 {[%emt 0:06:19]} Qxb6+ {[%emt 0:00:33]} 23. Kh1 {[%emt 0:00:29]} Bc5 {[%emt 0:04:25]} 24. Bc4 {[%emt 0:04:43]} Kh8 {[%emt 0:01:49]} 25. Qe2 {[%emt 0:04:31]} Nf4 {[%emt 0:01:08]} 26. Qf1 {[%emt 0:01:27]} Qc6 {[%emt 0:01:40]} 27. Ne4 {[%emt 0:01:39]} Bb6 {[%emt 0:03:50]} 28. Bxf4 {[%emt 0:02:02]} exf4 {[%emt 0:01:14]} 29. b3 {[%emt 0:01:44]} f5 {[%emt 0:05:19]} 30. Nf2 {[%emt 0:00:24]} Rd6 {[%emt 0:04:26]} 31. Rad1 {[%emt 0:01:53]} Rg6 {[%emt 0:04:14]} 32. Re7 {[%emt 0:01:09]} Bc5 {[%emt 0:07:38]} 33. Bd5 {[%emt 0:02:29]} Bxe7 {[%emt 0:04:56]} 34. Bxc6 {[%emt 0:00:10]} Bxc6 {[%emt 0:00:05]} 35. Qc4 {[%emt 0:02:48]} Rf6 {[%emt 0:07:37]} 36. Qxf4 {[%emt 0:01:14]} Rc8 {[%emt 0:00:58]} 37. Nd3 {[%emt 0:02:28]} Be8 {[%emt 0:02:17]} 38. Nxb4 {[%emt 0:02:01]} Bf7 {[%emt 0:11:36]} 39. Rd7 {[%emt 0:01:18]} Re8 {[%emt 0:04:01]} 40. Nd5 {[%emt 0:00:00]} Bxd5 {[%emt 0:00:00]} 41. Rxd5 {[%emt 0:04:04]} Re6 {[%emt 0:07:15]} 42. Re5 {[%emt 0:05:17]} Bf6 {[%emt 0:02:01]} 43. Rxe6 {[%emt 0:00:33]} Rxe6 {[%emt 0:00:02]} 44. Qxf5 {[%emt 0:01:04]} Re1+ {[%emt 0:00:50]} 45. Kh2 {[%emt 0:00:07]} Be5+ {[%emt 0:00:33]} 46. f4 {[%emt 0:00:43]} Bd4 {[%emt 0:00:49]} 47. Qc8+ {[%emt 0:02:45]} Kh7 {[%emt 0:00:10]} 48. Qxa6 {[%emt 0:01:28]} Bg1+ {[%emt 0:00:14]} 49. Kg3 {[%emt 0:00:18]} h5 {[%emt 0:00:38]} 50. Qd3+ {[%emt 0:01:14]} g6 {[%emt 0:01:45]} 51. Kf3 {[%emt 0:03:23]} Bc5 {[%emt 0:02:21]} 52. f5 {[%emt 0:02:22]} 1-0